fUST/lending_fUST_20240910
["ID","MTS","AMOUNT","RATE_DAILY","PERIOD"]
[337677838,1725942640284,-250.0,0.00019896,2]
[337677839,1725942640293,-250.0,0.0001995,2]
[337677840,1725942640302,-250.0,0.00020004,2]
[337677841,1725942640312,-250.0,0.00020058,2]
[337677842,1725942640321,-250.0,0.00020112,2]
[337677843,1725942640330,-250.0,0.00020167,2]
[337677844,1725942640339,-250.0,0.00020221,2]
[337677845,1725942640348,-250.0,0.00020275,2]
[337677846,1725942640358,-250.0,0.00020329,2]
[337677847,1725942640367,-153.0,0.00020341,2]
[337677848,1725942640377,-250.0,0.00020383,2]
[337677849,1725942640387,-5084.29220904,0.000204,2]
[337677850,1725942640398,-250.0,0.00020437,2]
[337677851,1725942640408,-250.0,0.00020491,2]
[337677852,1725942640419,-250.0,0.00020545,2]
[337677853,1725942640432,-250.0,0.00020599,2]
[337677854,1725942640444,-250.0,0.00020654,2]
[337677855,1725942640455,-250.0,0.00020708,2]
[337677856,1725942640464,-5084.29220904,0.00020718,2]
[337677857,1725942640473,-14496.5281725,0.00020727,2]
[337677858,1725942640482,-250.0,0.00020762,2]
[337677859,1725942640491,-153.0,0.00020941,2]
[337677860,1725942640501,-818.25319467,0.00020995,2]
[337677861,1725942640515,-153.0,0.00021041,2]
[337677862,1725942640525,-153.0,0.00021041,2]
[337677863,1725942640535,-5084.29220904,0.00021079,2]
[337677864,1725942640544,-420.0,0.00021123,2]
[337677865,1725942640554,-5084.29220904,0.00021133,2]
[337677866,1725942640564,-153.0,0.00021178,2]
[337677867,1725942640573,-208.3247076,0.00021178,2]
[337677868,1725942640583,-208.3247076,0.00021178,2]
[337677869,1725942640592,-415.7526167,0.00021178,2]
[337677870,1725942640602,-153.0,0.000213,2]
[337677871,1725942640611,-154.7383087,0.000213,2]
[337677872,1725942640621,-818.25319467,0.00021495,2]
[337677873,1725942640630,-5084.29220904,0.00021586,2]
[337677874,1725942640639,-524.29999999,0.00021698,2]
[337677875,1725942640649,-296.332,0.00021701,2]
[337677876,1725942640658,-585.509,0.00021701,2]
[337677877,1725942640667,-5084.29220909,0.00021715,2]
[337677878,1725942640677,-1000.0,0.00021796,2]
[337677879,1725942640687,-1126.91542086,0.000218,2]
[337677880,1725942640697,-215.2,0.0002186,3]
[337677881,1725942640706,-645.62,0.0002186,3]
[337677882,1725942640715,-500.0,0.00021869,2]
[337677883,1725942640724,-596.96992649,0.00021869,2]
[337677884,1725942640733,-500.0,0.00021869,2]
[337677885,1725942640743,-500.0,0.00021869,2]
[337677886,1725942640752,-500.0,0.00021869,2]
[337677887,1725942640762,-263.69362646,0.00021869,2]
[337677888,1725942640771,-500.0,0.00021869,2]
[337677889,1725942640782,-500.0,0.00021869,2]
[337677890,1725942640791,-500.0,0.00021869,2]
[337677891,1725942640801,-500.0,0.00021869,2]
[337677892,1725942640810,-500.0,0.00021869,2]
[337677893,1725942640820,-500.0,0.00021869,2]
[337677894,1725942640830,-500.0,0.00021869,2]
[337677895,1725942640839,-500.0,0.00021869,2]
[337677896,1725942640849,-500.0,0.00021869,2]
[337677897,1725942640859,-500.0,0.00021869,2]
[337677898,1725942640869,-500.0,0.00021869,2]
[337677899,1725942640879,-500.0,0.00021869,2]
[337677900,1725942640889,-453.24234535,0.0002187,2]
[337677901,1725942640899,-500.0,0.0002187,2]
[337677902,1725942640909,-500.0,0.0002187,2]
[337677903,1725942640919,-500.0,0.0002187,2]
[337677904,1725942640930,-500.0,0.0002187,2]
[337677905,1725942640940,-500.0,0.0002187,2]
[337677906,1725942640950,-479.64308601,0.0002187,2]
[337677907,1725942640960,-500.0,0.0002187,2]
[337677908,1725942640970,-500.0,0.0002187,2]
[337677909,1725942640980,-500.0,0.0002187,2]
[337677910,1725942640991,-94510.47243382,0.00021871,3]
[337677918,1725942643237,-146301.53088518,0.00021871,3]
[337677919,1725942643246,-500.0,0.00021873,2]
[337677920,1725942643255,-503.95294463,0.00021873,2]
[337677921,1725942643265,-501.61265771,0.00021873,2]
[337677922,1725942643275,-500.0,0.00021873,2]
[337677923,1725942643285,-120406.001659,0.00021873,3]
[337677924,1725942643302,-238.471075,0.000219,5]
[337677925,1725942643312,-3000.0,0.000219,2]
[337677926,1725942643321,-3000.0,0.0002191,2]
[337677927,1725942643330,-358.4850641,0.00021917,2]
[337677928,1725942643339,-500.0,0.00021917,2]
[337677929,1725942643348,-398.03096745,0.00021917,2]
[337677930,1725942643357,-503.96445369,0.00021917,2]
[337677931,1725942643367,-333.76089851,0.00021917,2]
[337677933,1725942643377,-500.0,0.00021917,2]
[337677935,1725942643386,-506.90701818,0.00021917,2]
[337677936,1725942643395,-500.0,0.00021917,2]
[337677937,1725942643404,-500.0,0.00021917,2]
[337677938,1725942643413,-500.0,0.00021917,2]
[337677939,1725942643422,-844.49,0.00021917,2]
[337677940,1725942643431,-500.0,0.00021917,2]
[337677941,1725942643440,-500.0,0.00021917,2]
[337677942,1725942643450,-485.70526164,0.00021917,2]
[337677943,1725942643458,-500.0,0.00021917,2]
[337677944,1725942643467,-592.93,0.00021917,2]
[337677945,1725942643477,-500.0,0.00021917,2]
[337677946,1725942643486,-173.10116931,0.00021917,2]
[337678190,1725943603937,-937.00955719,0.00017708,2]
[337678191,1725943603960,-500.0,0.00017808,2]
[337678192,1725943603982,-1289.3502653,0.00019353,2]
[337678193,1725943604004,-250.0,0.00019733,2]
[337678194,1725943604025,-250.0,0.00019787,2]
[337678195,1725943604053,-250.0,0.00019841,2]
[337678196,1725943604074,-250.0,0.00019895,2]
[337678197,1725943604097,-186.5860803,0.00019935,2]
[337678198,1725943604119,-250.0,0.00019949,2]
[337678199,1725943604141,-1000.0,0.0002,2]
[337678238,1725943838412,-500.0,0.00017808,2]
[337678239,1725943838421,-274.3762432,0.00019178,2]
[337678240,1725943838431,-300.0,0.00019488,2]
[337678241,1725943838440,-300.0,0.00019488,2]
[337678242,1725943838450,-24900.0,0.00019489,2]
[337678243,1725943838460,-250.0,0.00019575,2]
[337678244,1725943838469,-250.0,0.00019629,2]
[337678245,1725943838480,-250.0,0.00019683,2]
[337678246,1725943838489,-250.0,0.00019736,2]
[337678247,1725943838499,-250.0,0.0001979,2]
[337678248,1725943838509,-250.0,0.00019844,2]
[337678249,1725943838518,-250.0,0.00019898,2]
[337678250,1725943838528,-250.0,0.00019951,2]
[337678251,1725943838538,-250.0,0.00020005,2]
[337678252,1725943838549,-250.0,0.00020059,2]
[337678253,1725943838559,-160.0,0.00020518,3]
[337678254,1725943838568,-160.0,0.00020781,4]
[337678255,1725943838578,-2727.510649,0.00020995,2]
[337678256,1725943838587,-1805.81,0.00021,2]
[337678257,1725943838597,-160.0,0.00021044,5]
[337678258,1725943838606,-4000.0,0.00021153,2]
[337678259,1725943838616,-4000.0,0.00021207,2]
[337678260,1725943838625,-420.0,0.00021231,2]
[337678261,1725943838635,-4000.0,0.00021262,2]
[337678262,1725943838644,-497.81066595,0.00021292,2]
[337678263,1725943838654,-160.0,0.00021307,6]
[337678264,1725943838663,-4000.0,0.00021317,2]
[337678265,1725943838672,-4000.0,0.00021372,2]
[337678266,1725943838682,-1291.08279457,0.00021427,2]
[337678267,1725943838691,-420.0,0.00021436,2]
[337678268,1725943838701,-5455.021298,0.00021495,2]
[337678269,1725943838711,-160.0,0.0002157,7]
[337678270,1725943838720,-523.0,0.00021673,2]
[337678271,1725943838729,-150.0,0.00021673,2]
[337678272,1725943838740,-150.419,0.00021673,2]
[337678273,1725943838749,-16947.86927519,0.00021698,2]
[337678274,1725943838950,-2900.0,0.0002171,2]
[337678275,1725943838961,-1000.0,0.00021783,2]
[337678276,1725943838971,-1305.81538802,0.00021807,2]
[337678277,1725943838980,-430.4,0.00021807,3]
[337678278,1725943838990,-3000.0,0.00021817,2]
[337678279,1725943839001,-13820.01424132,0.00021817,2]
[337678280,1725943839011,-160.0,0.00021833,8]
[337678281,1725943839021,-500.0,0.00021869,2]
[337678282,1725943839030,-500.0,0.00021869,2]
[337678283,1725943839040,-500.0,0.00021869,2]
[337678284,1725943839050,-500.0,0.00021869,2]
[337678285,1725943839059,-500.0,0.00021869,2]
[337678286,1725943839068,-500.0,0.00021869,2]
[337678287,1725943839079,-500.0,0.00021869,2]
[337678288,1725943839088,-500.0,0.00021869,2]
[337678289,1725943839098,-500.0,0.00021869,2]
[337678290,1725943839108,-500.0,0.00021869,2]
[337678291,1725943839117,-500.0,0.00021869,2]
[337678292,1725943839128,-608.51742202,0.00021869,2]
[337678293,1725943839138,-500.0,0.00021869,2]
[337678294,1725943839147,-500.0,0.00021869,2]
[337678295,1725943839157,-500.0,0.00021869,2]
[337678296,1725943839167,-500.0,0.00021869,2]
[337678297,1725943839176,-376.06668942,0.00021869,2]
[337678298,1725943839186,-500.0,0.00021869,2]
[337678299,1725943839196,-500.0,0.00021869,2]
[337678300,1725943839206,-500.0,0.00021869,2]
[337678301,1725943839216,-500.0,0.00021869,2]
[337678302,1725943839226,-500.0,0.00021869,2]
[337678303,1725943839235,-500.0,0.00021869,2]
[337678304,1725943839245,-500.0,0.00021869,2]
[337678305,1725943839254,-500.0,0.00021869,2]
[337678306,1725943839264,-500.0,0.00021869,2]
[337678307,1725943839273,-500.0,0.00021869,2]
[337678308,1725943839283,-500.0,0.00021869,2]
[337678309,1725943839293,-500.0,0.00021869,2]
[337678310,1725943839304,-500.0,0.00021869,2]
[337678311,1725943839314,-500.0,0.00021869,2]
[337678312,1725943839324,-500.0,0.00021869,2]
[337678313,1725943839333,-500.0,0.00021869,2]
[337678314,1725943839343,-500.0,0.00021869,2]
[337678315,1725943839355,-500.0,0.00021869,2]
[337678316,1725943839364,-500.0,0.00021869,2]
[337678317,1725943839373,-500.0,0.00021869,2]
[337678318,1725943839383,-500.0,0.00021869,2]
[337678319,1725943839392,-500.0,0.00021869,2]
[337678320,1725943839402,-500.0,0.00021869,2]
[337678321,1725943839411,-500.0,0.00021869,2]
[337678322,1725943839421,-317.26964174,0.0002187,2]
[337678323,1725943839431,-500.0,0.0002187,2]
[337678324,1725943839441,-338.29411954,0.0002187,2]
[337678325,1725943839450,-500.0,0.0002187,2]
[337678326,1725943839460,-500.0,0.0002187,2]
[337678327,1725943839469,-500.0,0.0002187,2]
[337678328,1725943839480,-500.0,0.0002187,2]
[337678329,1725943839490,-204690.202821,0.00021871,3]
[337678330,1725943839499,-190910.269251,0.00021871,3]
[337678331,1725943839508,-500.0,0.00021873,2]
[337678332,1725943839518,-500.0,0.00021873,2]
[337678333,1725943839527,-500.0,0.00021873,2]
[337678334,1725943839536,-151.0,0.00021873,2]
[337678335,1725943839545,-151.0,0.00021873,2]
[337678336,1725943839554,-151.0,0.00021873,2]
[337678337,1725943839564,-151.0,0.00021873,2]
[337678338,1725943839574,-151.0,0.00021873,2]
[337678339,1725943839584,-151.0,0.00021873,2]
[337678340,1725943839593,-15108.86605324,0.00021873,3]
[337678341,1725943839928,-250.0,0.00020112,2]
[337678342,1725943839942,-3757.45567,0.00021873,3]
[337678343,1725943839954,-1240.05606823,0.00021873,3]
[337678344,1725943839966,-254.63533274,0.00021873,3]
[337678349,1725943840528,-250.0,0.00020166,2]
[337678350,1725943840537,-224.25173268,0.0002022,2]
[337678351,1725943840549,-25.74826732,0.0002022,2]
[337678352,1725943840559,-250.0,0.00020273,2]
[337678353,1725943840568,-250.0,0.00020327,2]
[337678354,1725943840578,-72.27230998,0.00020381,2]
[337678356,1725943840589,-177.72769002,0.00020381,2]
[337678358,1725943840599,-250.0,0.00020435,2]
[337678360,1725943840609,-84.64662687,0.00020488,2]
[337678363,1725943840624,-165.35337313,0.00020488,2]
[337678365,1725943840634,-2667.14662687,0.00021873,3]
[337678369,1725943843308,-250.0,0.00020542,2]
[337678370,1725943843317,-250.0,0.00020596,2]
[337678371,1725943843328,-500.0,0.00021873,2]
[337678372,1725943843337,-5029.39865856,0.00021873,3]
[337678373,1725943843349,-19580.02498817,0.00021873,3]
[337678375,1725943843431,-18.87997888,0.00021873,3]
[337678377,1725943843442,-23586.09077163,0.00021873,3]
[337678379,1725943843453,-678.68036038,0.00021873,3]
[337678381,1725943843464,-414.2541463,0.00021873,3]
[337678397,1725943846436,-151.575,0.00021673,2]
[337678398,1725943846446,-500.67872696,0.00021873,2]
[337678399,1725943846455,-17329.88627304,0.00021873,3]
[337678518,1725945005144,179.0487246,0.00018,5]
[337678589,1725945033038,-500.0,0.00017808,2]
[337678591,1725945033049,-250.0,0.00019581,2]
[337678593,1725945033059,-64.18426237,0.00019582,2]
[337678633,1725945038529,-158.84478064,0.00019582,2]
[337678634,1725945038538,-223.02904299,0.00019586,2]
[337678636,1725945038547,-223.02904299,0.00019589,2]
[337678638,1725945038556,-250.0,0.00019635,2]
[337678640,1725945038566,-1255.1042233,0.00019671,2]
[337678642,1725945038576,-300.0,0.00019682,2]
[337678644,1725945038585,-300.0,0.00019682,2]
[337678646,1725945038594,-13023.65452215,0.00019683,2]
[337678648,1725945038605,-11876.34547785,0.00019683,2]
[337678650,1725945038616,-250.0,0.00019689,2]
[337678652,1725945038627,-250.0,0.00019742,2]
[337678654,1725945038637,-250.0,0.00019796,2]
[337678656,1725945038647,-250.0,0.0001985,2]
[337678659,1725945038657,-250.0,0.00019904,2]
[337678660,1725945038666,-250.0,0.00019957,2]
[337678662,1725945038675,-250.0,0.00020011,2]
[337678664,1725945038686,-250.0,0.00020065,2]
[337678666,1725945038695,-250.0,0.00020118,2]
[337678668,1725945038704,-250.0,0.00020172,2]
[337678669,1725945038713,-250.0,0.00020226,2]
[337678670,1725945038723,-250.0,0.00020279,2]
[337678671,1725945038732,-250.0,0.00020333,2]
[337678672,1725945038741,-250.0,0.00020387,2]
[337678673,1725945038750,-250.0,0.00020441,2]
[337678674,1725945038759,-250.0,0.00020494,2]
[337678675,1725945038769,-250.0,0.00020548,2]
[337678676,1725945038778,-250.0,0.00020602,2]
[337678677,1725945038787,-152.98168038,0.00020868,3]
[337678678,1725945038800,-7.01831962,0.00020868,3]
[337678679,1725945038809,-1818.34043267,0.00020995,2]
[337678680,1725945038819,-4000.0,0.00021153,2]
[337678681,1725945038829,-160.0,0.00021175,3]
[337678682,1725945038839,-4000.0,0.00021207,2]
[337678683,1725945038848,-4000.0,0.00021262,2]
[337678684,1725945038857,-4000.0,0.00021317,2]
[337678685,1725945038867,-4000.0,0.00021372,2]
[337678686,1725945038877,-1291.08279457,0.00021427,2]
[337678687,1725945038886,-420.0,0.00021438,2]
[337678688,1725945038895,-160.0,0.00021482,4]
[337678689,1725945038905,-1818.34043267,0.00021495,2]
[337678690,1725945038914,-420.0,0.0002165,2]
[337678691,1725945038924,-150.0,0.00021673,2]
[337678692,1725945038937,-523.0,0.00021673,2]
[337678693,1725945038952,-16947.86927519,0.00021698,2]
[337678694,1725945038962,-1000.0,0.00021707,2]
[337678695,1725945038972,-430.4,0.00021714,3]
[337678696,1725945038981,-1305.81538802,0.00021724,2]
[337678697,1725945038990,-500.0,0.00021773,2]
[337678698,1725945039000,-500.0,0.00021773,2]
[337678699,1725945039010,-500.0,0.00021773,2]
[337678700,1725945039020,-500.0,0.00021793,2]
[337678701,1725945039031,-500.0,0.00021793,2]
[337678702,1725945039042,-500.0,0.00021793,2]
[337678703,1725945039052,-500.0,0.00021793,2]
[337678704,1725945039062,-500.0,0.00021793,2]
[337678705,1725945039072,-500.0,0.00021793,2]
[337678706,1725945039083,-500.0,0.00021793,2]
[337678707,1725945039093,-500.0,0.00021793,2]
[337678708,1725945039104,-500.0,0.00021793,2]
[337678709,1725945039114,-500.0,0.00021793,2]
[337678710,1725945039125,-500.0,0.00021793,2]
[337678711,1725945039134,-500.0,0.00021793,2]
[337678712,1725945039149,-500.0,0.00021793,2]
[337678713,1725945039160,-500.0,0.00021793,2]
[337678714,1725945039170,-500.0,0.00021793,2]
[337678715,1725945039182,-484.4291554,0.00021793,2]
[337678716,1725945039193,-500.0,0.00021793,2]
[337678717,1725945039203,-500.0,0.00021793,2]
[337678718,1725945039218,-500.0,0.00021793,2]
[337678719,1725945039230,-500.0,0.00021793,2]
[337678720,1725945039241,-500.0,0.00021793,2]
[337678721,1725945039250,-500.0,0.00021793,2]
[337678722,1725945039260,-500.0,0.00021793,2]
[337678723,1725945039269,-500.0,0.00021793,2]
[337678724,1725945039279,-500.0,0.00021793,2]
[337678725,1725945039288,-500.0,0.00021793,2]
[337678726,1725945039298,-500.0,0.00021793,2]
[337678727,1725945039308,-500.0,0.00021793,2]
[337678728,1725945039318,-500.0,0.00021793,2]
[337678729,1725945039328,-500.0,0.00021793,2]
[337678730,1725945039338,-500.0,0.00021793,2]
[337678731,1725945039348,-500.0,0.00021793,2]
[337678732,1725945039359,-500.0,0.00021793,2]
[337678733,1725945039370,-500.0,0.00021793,2]
[337678734,1725945039380,-500.0,0.00021793,2]
[337678735,1725945039391,-500.0,0.00021793,2]
[337678736,1725945039402,-500.0,0.00021793,2]
[337678737,1725945039413,-500.0,0.00021793,2]
[337678738,1725945039423,-500.0,0.00021793,2]
[337678739,1725945039433,-500.0,0.00021793,2]
[337678740,1725945039444,-500.0,0.00021793,2]
[337678741,1725945039454,-500.0,0.00021793,2]
[337678742,1725945039464,-500.0,0.00021793,2]
[337678743,1725945039474,-500.0,0.00021793,2]
[337678744,1725945039485,-500.0,0.00021793,2]
[337678745,1725945039497,-500.0,0.00021793,2]
[337678746,1725945039506,-500.0,0.00021793,2]
[337678747,1725945039515,-500.0,0.00021793,2]
[337678748,1725945039525,-500.0,0.00021793,2]
[337678749,1725945039537,-500.0,0.00021793,2]
[337678750,1725945039546,-500.0,0.00021793,2]
[337678751,1725945039556,-500.0,0.00021793,2]
[337678752,1725945039566,-500.0,0.00021793,2]
[337678753,1725945039575,-500.0,0.00021793,2]
[337678754,1725945039585,-500.0,0.00021793,2]
[337678755,1725945039594,-500.0,0.00021793,2]
[337678756,1725945039604,-500.0,0.00021793,2]
[337678757,1725945039614,-500.0,0.00021793,2]
[337678758,1725945039623,-500.0,0.00021793,2]
[337678759,1725945039633,-317.26964174,0.00021794,2]
[337678760,1725945039643,-311.58772131,0.00021794,2]
[337678761,1725945039653,-500.0,0.00021794,2]
[337678762,1725945039663,-500.0,0.00021794,2]
[337678763,1725945039672,-500.0,0.00021794,2]
[337678764,1725945039683,-419.34323173,0.00021794,2]
[337678765,1725945039693,-500.0,0.00021794,2]
[337678766,1725945039703,-500.0,0.00021794,2]
[337678767,1725945039712,-500.0,0.00021794,2]
[337678768,1725945039724,-500.0,0.00021794,2]
[337678769,1725945039733,-500.0,0.00021794,2]
[337678770,1725945039747,-500.0,0.00021794,2]
[337678771,1725945039758,-300.0,0.00021794,2]
[337678772,1725945039768,-394469.103867,0.00021795,3]
[337678773,1725945039777,-56507.86189739,0.00021795,3]
[337678842,1725945043472,-4593.8544872,0.00021696,2]
[337678844,1725945043482,-140101.50644957,0.00021795,3]
[337678998,1725945248443,-500.0,0.00019873,2]
[337678999,1725945248470,-358.46694143,0.00019873,2]
[337679000,1725945248494,-500.0,0.00019873,2]
[337679001,1725945248516,-500.0,0.00019873,2]
[337679002,1725945248732,-300.0,0.00019899,2]
[337679003,1725945248757,-300.0,0.00019899,2]
[337679004,1725945248780,-28845.53305857,0.000199,2]
[337679009,1725945361630,-500.0,0.00017808,2]
[337679010,1725945530176,250.0,0.00018738,2]
[337679012,1725945554043,250.0,0.00018832,2]
[337679013,1725945554224,250.0,0.00018884,2]
[337679014,1725945554439,250.0,0.00018935,2]
[337679015,1725945554865,250.0,0.00018987,2]
[337679021,1725945762477,152.03025353,0.00018939,2]
[337679023,1725945772830,24900.0,0.00018445,2]
[337679024,1725945773293,500.0,0.00017808,2]
[337679034,1725946077135,250.0,0.00018703,2]
[337679035,1725946077333,250.0,0.00018754,2]
[337679036,1725946077549,250.0,0.00018805,2]
[337679037,1725946077772,250.0,0.00018857,2]
[337679038,1725946078015,250.0,0.00018908,2]
[337679039,1725946078224,250.0,0.00018959,2]
[337679050,1725946195693,20808.23361134,0.0001891,2]
[337679068,1725946232782,-250.0,0.0001901,2]
[337679070,1725946232792,-250.0,0.00019062,2]
[337679072,1725946232802,-250.0,0.00019113,2]
[337679074,1725946232812,-250.0,0.00019164,2]
[337679076,1725946232822,-165.82228,0.00019178,2]
[337679078,1725946232831,-178.2752,0.00019178,2]
[337679079,1725946232841,-179.46430718,0.00019216,2]
[337679082,1725946238717,-70.53569282,0.00019216,2]
[337679083,1725946238726,-250.0,0.00019267,2]
[337679084,1725946238744,-250.0,0.00019318,2]
[337679085,1725946238753,-250.0,0.00019369,2]
[337679086,1725946238763,-250.0,0.00019421,2]
[337679087,1725946238772,-250.0,0.00019472,2]
[337679088,1725946238781,-4817.9985062,0.00019496,2]
[337679089,1725946238790,-250.0,0.00019523,2]
[337679090,1725946238800,-250.0,0.00019575,2]
[337679092,1725946238809,-300.0,0.00019575,2]
[337679093,1725946238818,-300.0,0.00019575,2]
[337679094,1725946238828,-8581.28614652,0.00019576,2]
[337679095,1725946238837,-8581.28614648,0.00019576,2]
[337679096,1725946238846,-8581.28614648,0.00019577,2]
[337679097,1725946238856,-8581.28614648,0.00019577,2]
[337679098,1725946238865,-8581.28614648,0.00019577,2]
[337679099,1725946238875,-1477.33980514,0.00019591,2]
[337679100,1725946238884,-250.0,0.00019626,2]
[337679101,1725946238893,-569.16,0.00019666,3]
[337679102,1725946238903,-284.58,0.00019666,3]
[337679103,1725946238912,-853.74,0.00019666,3]
[337679104,1725946238922,-159.30780328,0.00019673,2]
[337679105,1725946238931,-501.17925597,0.00019673,2]
[337679106,1725946238940,-158.57420057,0.00019673,2]
[337679107,1725946238950,-178.56761845,0.00019673,2]
[337679108,1725946238963,-529.63456092,0.00019673,2]
[337679109,1725946238973,-637.16205377,0.00019673,2]
[337679110,1725946238984,-500.0,0.00019673,2]
[337679111,1725946238994,-269.01286682,0.00019673,2]
[337679112,1725946239004,-500.0,0.00019673,2]
[337679113,1725946239014,-500.0,0.00019673,2]
[337679114,1725946239024,-500.0,0.00019673,2]
[337679115,1725946239034,-500.0,0.00019675,2]
[337679116,1725946239043,-627.72189099,0.00019675,2]
[337679117,1725946239054,-214.1056049,0.00019675,2]
[337679118,1725946239064,-500.0,0.00019675,2]
[337679119,1725946239074,-500.0,0.00019675,2]
[337679120,1725946239084,-500.0,0.00019675,2]
[337679121,1725946239094,-500.0,0.00019675,2]
[337679122,1725946239103,-500.0,0.00019675,2]
[337679123,1725946239112,-237.35697149,0.00019675,2]
[337679124,1725946239122,-500.0,0.00019675,2]
[337679125,1725946239132,-500.0,0.00019675,2]
[337679126,1725946239141,-500.0,0.00019675,2]
[337679127,1725946239151,-500.0,0.00019675,2]
[337679128,1725946239162,-500.0,0.00019675,2]
[337679129,1725946239171,-500.0,0.00019675,2]
[337679130,1725946239180,-500.0,0.00019675,2]
[337679131,1725946239190,-500.0,0.00019675,2]
[337679132,1725946239200,-500.0,0.00019675,2]
[337679133,1725946239210,-500.0,0.00019675,2]
[337679134,1725946239220,-500.0,0.00019675,2]
[337679135,1725946239230,-500.0,0.00019675,2]
[337679136,1725946239239,-500.0,0.00019675,2]
[337679137,1725946239249,-500.0,0.00019675,2]
[337679138,1725946239258,-500.0,0.00019675,2]
[337679139,1725946239268,-500.0,0.00019675,2]
[337679140,1725946239279,-650.6321024,0.00019675,2]
[337679141,1725946239289,-500.0,0.00019675,2]
[337679142,1725946239298,-500.0,0.00019675,2]
[337679143,1725946239308,-500.0,0.00019675,2]
[337679144,1725946239318,-500.0,0.00019675,2]
[337679145,1725946239328,-500.0,0.00019675,2]
[337679146,1725946239338,-500.0,0.00019675,2]
[337679147,1725946239347,-500.0,0.00019675,2]
[337679148,1725946239357,-500.0,0.00019675,2]
[337679149,1725946239366,-500.0,0.00019675,2]
[337679150,1725946239378,-500.0,0.00019675,2]
[337679151,1725946239388,-500.0,0.00019675,2]
[337679152,1725946239397,-500.0,0.00019675,2]
[337679153,1725946239407,-500.0,0.00019675,2]
[337679154,1725946239416,-500.0,0.00019675,2]
[337679155,1725946239425,-500.0,0.00019675,2]
[337679156,1725946239435,-500.0,0.00019675,2]
[337679157,1725946239446,-500.0,0.00019675,2]
[337679158,1725946239457,-500.0,0.00019675,2]
[337679159,1725946239467,-500.0,0.00019675,2]
[337679160,1725946239477,-500.0,0.00019675,2]
[337679161,1725946239488,-500.0,0.00019675,2]
[337679162,1725946239498,-500.0,0.00019675,2]
[337679163,1725946239508,-500.0,0.00019675,2]
[337679164,1725946239518,-500.0,0.00019675,2]
[337679165,1725946239529,-500.0,0.00019675,2]
[337679166,1725946239539,-500.0,0.00019675,2]
[337679167,1725946239549,-500.0,0.00019675,2]
[337679168,1725946239559,-500.0,0.00019675,2]
[337679169,1725946239573,-500.0,0.00019675,2]
[337679170,1725946239582,-500.0,0.00019675,2]
[337679171,1725946239592,-500.0,0.00019675,2]
[337679172,1725946239602,-500.0,0.00019675,2]
[337679173,1725946239613,-500.0,0.00019675,2]
[337679174,1725946239624,-500.0,0.00019675,2]
[337679175,1725946239635,-500.0,0.00019675,2]
[337679176,1725946239644,-500.0,0.00019675,2]
[337679177,1725946239654,-500.0,0.00019675,2]
[337679178,1725946239664,-500.0,0.00019675,2]
[337679179,1725946239673,-500.0,0.00019675,2]
[337679180,1725946239684,-500.0,0.00019675,2]
[337679181,1725946239694,-500.0,0.00019675,2]
[337679182,1725946239704,-500.0,0.00019675,2]